[Event "Aarhus Festuge GM 2018"]
[Site "Aarhus"]
[Date "2018.09.15"]
[Round "8"]
[White "Pajeken, Jakob Leon"]
[Black "Olsen, Filip Boe"]
[Result "1/2-1/2"]
[ECO "A46"]
[WhiteElo "2337"]
[BlackElo "2354"]
[Annotator "ChessBase"]
[PlyCount "43"]
[EventDate "2018.09.08"]
[EventType "tourn"]
[EventCountry "DEN"]
[SourceTitle "playchess.com"]
[Source "ChessBase"]
[SourceQuality "1"]
[TimeControl "40/5400+30:1800+30"]

1. d4 {[%emt 0:00:00]} Nf6 {[%emt 0:00:00]} 2. Nf3 {[%emt 0:00:00]} e6 {[%emt 0:00:00]} 3. Bf4 {[%emt 0:00:00]} c5 {[%emt 0:00:24]} 4. e3 {[%emt 0:00:01]} Be7 {[%emt 0:01:35]} 5. c3 {[%emt 0:06:40]} b6 {[%emt 0:03:36]} 6. Nbd2 {[%emt 0:03:37]} O-O {[%emt 0:03:33]} 7. h3 {[%emt 0:03:51]} Bb7 {[%emt 0:01:27]} 8. Bd3 {[%emt 0:01:10]} cxd4 {[%emt 0:07:28]} 9. exd4 {[%emt 0:00:27]} d6 {[%emt 0:00:51]} 10. O-O {[%emt 0:02:04]} Nbd7 {[%emt 0:04:28]} 11. Qe2 {[%emt 0:04:30]} a6 {[%emt 0:04:51]} 12. a4 {[%emt 0:00:44]} Qc7 {[%emt 0:09:19]} 13. Rfe1 {[%emt 0:08:05]} Rfe8 {[%emt 0:05:40]} 14. Bh2 {[%emt 0:06:50]} Qc6 {[%emt 0:06:24]} 15. Qf1 {[%emt 0:09:35]} Nf8 {[%emt 0:06:46]} 16. c4 {[%emt 0:02:36]} a5 {[%emt 0:13:04]} 17. c5 {[%emt 0:21:43]} N8d7 {[%emt 0:10:54]} 18. Bb5 {[%emt 0:00:52]} Qd5 {[%emt 0:01:23]} 19. Bc4 {[%emt 0:02:44]} Qc6 {[%emt 0:00:30]} 20. Bb5 {[%emt 0:00:41]} Qd5 {[%emt 0:00:18]} 21. Bc4 {[%emt 0:09:06]} Qc6 {[%emt 0:00:13]} 22. Bb5 {[%emt 0:01:02]} 1/2-1/2